Cogmind - Beta 15 @@@ ROGUE MODE // 2025.07.20 @ 10:22:18 Player: Err. String Expected Got Nil Result: Destroyed by D-53 Grenadier with Mini Grenade Launcher Performance ------------- Evolutions (0) 0 Regions Visited (2) 400 Robots Destroyed (18) 90 Value Destroyed (295) 295 Prototype IDs (4) 80 Alien Tech Used (0) 0 Bonus (0) 0 TOTAL SCORE: 865 Bonus ------- None Cogmind --------- Core Integrity 0/250 Matter 252/300 Energy 100/100 System Corruption 0% Temperature Cool (0) Movement Core (350) Ox6 Location -10/Mines Parts ------- > --- POWER (1) -------- (None) > --- PROPULSION (2) --- (None) > --- UTILITY (2) ------ Large Storage Unit Seismic Detector > --- WEAPON (2) ------- (None) > --- INVENTORY (15) --- Improved Ion Engine Improved Ion Engine Improved Ion Engine Light Nuclear Core Aluminum Leg Aluminum Leg Small Storage Unit ECM Suite Light Assault Rifle Grenade Launcher Grenade Launcher Mining Laser Hammer Peak State ------------ > --- POWER ------------ Improved Ion Engine > --- PROPULSION ------- Light Treads Light Treads > --- UTILITY ---------- Large Storage Unit Seismic Detector > --- WEAPON ----------- Light Cannon Light Cannon > --- INVENTORY -------- Improved Ion Engine Improved Ion Engine Improved Ion Engine Light Nuclear Core Aluminum Leg Aluminum Leg Small Storage Unit Seismic Detector ECM Suite Small Laser Assault Rifle Light Assault Rifle Light Cannon Mining Laser Hammer [Rating: 10] Favorites ----------- Power Ion Engine Engine Ion Engine Propulsion Light Treads Treads Light Treads Utility Seismic Detector Device Seismic Detector Storage Large Storage Unit Weapon Light Cannon Energy Gun Small Laser Ballistic Gun Assault Rifle Ballistic Cannon Light Cannon Launcher Grenade Launcher Special Weapon Mining Laser Build | -11 -10 -10 ------- Run | Yrd Mat Min Slots Evolved . | . . . Power . | . . . Propulsion . | . . . Utility . | . . . Weapon . | . . . Parts Attached 16 | 7 7 2 Power 3 | 1 2 . Engine 3 | 1 2 . Core . | . . . Reactor . | . . . Propulsion 2 | 2 . . Treads 2 | 2 . . Leg . | . . . Wheel . | . . . Hover . | . . . Flight . | . . . Utility 4 | 2 2 . Device 2 | 1 1 . Storage 2 | 1 1 . Processor . | . . . Hackware . | . . . Protection . | . . . Artifact . | . . . Weapon 7 | 2 3 2 Energy Gun 1 | 1 . . Energy Cannon . | . . . Ballistic Gun 1 | 1 . . Ballistic Cannon 3 | . 2 1 Launcher 1 | . . 1 Special Weapon 1 | . 1 . Impact Weapon . | . . . Slashing Weapon . | . . . Piercing Weapon . | . . . Special Melee Weapon . | . . . Unidentified Prototypes . | . . . Parts Lost 7 | . . 7 Power 1 | . . 1 Propulsion 2 | . . 2 Utility . | . . . Weapon 4 | . . 4 Highest Loss Streak 7 | . . 7 To Critical Strikes . | . . . Average Backups 9 | 2 9 14 Power 2 | . 2 4 Propulsion 1 | 1 1 2 Utility 1 | . 1 2 Weapon 4 | 1 4 6 Tool/Special . | . . . Unused Backups 15 | . 5 10 Power 8 | . 4 4 Propulsion 3 | . 1 2 Utility 1 | . . 1 Weapon 3 | . . 3 Tool/Special . | . . . Average Slot Usage (%) 99 | . 100 88 Engine 13 | . 14 11 Treads 27 | . 28 22 Device 14 | . 14 14 Storage 14 | . 14 14 Energy Gun 5 | . 5 . Ballistic Gun 5 | . 5 2 Ballistic Cannon 16 | . 16 16 Peak Build Rating 10 | 7 10 10 Average Rating 7 | 5 7 8 On Entrance 5 | . 7 10 Naked Turns . | . . . Heaviest Build 34 | 12 34 34 Greatest Support 40 | 40 40 40 Greatest Overweight (x) . | . . . Average Overweight (x) . | . . . Largest Inventory Capacity 15 | 8 15 15 Average Capacity 13 | 7 14 15 Most Carried 15 | 5 15 15 Average Carried 9 | 2 9 14 Final Capacity 15 | 8 15 15 Final Carried 15 | 5 15 13 Class Distribution -------------------- 100% | Mutant Dominant Class ---------------- Mutant | -10/Materials Mutant | -10/Mines Resources | -11 -10 -10 ----------- Run | Yrd Mat Min Matter Collected 629 | 283 346 . Remotely . | . . . Salvage Created 531 | 78 453 . Parts 26 | 8 18 . Haulers Intercepted 2 | . 2 . Recyclers Shooed 2 | . 2 . Parts Field Recycled . | . . . Retrieved Matter . | . . . Parts Self-Destructed . | . . . Prevented . | . . . Kills | -11 -10 -10 ------- Run | Yrd Mat Min Combat Hostiles Destroyed 8 | . 8 . Guns 5 | . 5 . Cannons 3 | . 3 . Classes Destroyed 7 | 2 5 . Worker 1 | . 1 . Tunneler 2 | 2 . . Hauler 2 | . 2 . Recycler 3 | 1 2 . Watcher 2 | . 2 . Swarmer 3 | . 3 . Grunt 5 | . 5 . Best Kill Streak 4 | 3 4 . Combat Bots Only 3 | . 3 . Max Kills in Single Turn 2 | 1 2 . Gunslinging . | . . . Exploded . | . . . Melee . | . . . Uniques/NPCs Destroyed . | . . . Combat | -11 -10 -10 -------- Run | Yrd Mat Min Hostile Shots Fired 61 | . 39 22 Missed 15 | . 15 . Hits 46 | . 24 22 Projectile 46 | . 24 22 AOE 25 | . . 25 Critical Strikes 1 | . 1 . Damage Taken 1292 | . 299 993 Core 284 | . 10 274 Absorbed by Shields . | . . . Core Remaining (%) 100 | 100 . . Volleys Fired 64 | 5 52 7 Largest 2 | 2 2 2 Hottest 100 | 60 100 60 Shots Fired 117 | 10 95 12 Gun 49 | 10 34 5 Cannon 61 | . 54 7 Launcher . | . . . Special 7 | . 7 . Kinetic 89 | 5 72 12 Thermal 28 | 5 23 . Explosive . | . . . Electromagnetic . | . . . Robot Hit Streak 8 | 6 6 8 Robot Miss Streak 6 | 1 6 2 Penetration Max . | . . . Secondary Targets 1 | . 1 . Max Gunslinging Chain 1 | . 1 . Shots Hit Robots 58 | 7 43 8 Core Hits 26 | 4 20 2 Critical Kills . | . . . Critical Parts Destroyed . | . . . Critical Strikes 1 | . 1 . Blast 1 | . 1 . Melee Attacks . | . . . Impact . | . . . Slashing . | . . . Piercing . | . . . Sneak Attacks . | . . . Combat Hostiles . | . . . Follow-up Attacks . | . . . Damage Inflicted 923 | 86 707 130 Guns 288 | 82 180 26 Cannons 619 | . 515 104 Explosions . | . . . Melee . | . . . Ramming 16 | 4 12 . Kinetic 790 | 51 609 130 Thermal 117 | 31 86 . Explosive . | . . . Electromagnetic . | . . . Impact . | . . . Slashing . | . . . Piercing . | . . . Highest Corruption . | . . . Average Corruption . | . . . Corruption Purged . | . . . Corruption Blocked . | . . . Overload Shots . | . . . Overflow Damage 8 | . 8 . Projectiles 8 | . 8 . Explosions . | . . . Melee . | . . . Knockbacks 12 | . 9 3 Impact 1 | . 1 . Kinetic 10 | . 7 3 Secondary 1 | . 1 . Self-Inflicted Damage . | . . . Shots . | . . . Rammed 4 | 2 2 . Targets Rammed 4 | 2 2 . Kicked . | . . . Crushed . | . . . Highest Temperature 72 | . 72 6 Average Temperature 27 | . 28 3 Received Heat Transfer 132 | . 132 . Siege Activations . | . . . Martial Activations . | . . . Shielding Activations . | . . . Robots Disrupted . | . . . Combat Hostiles . | . . . Robots Corrupted . | . . . Combat Hostiles . | . . . Parts Fried . | . . . Impact Corruptions . | . . . Robots Melted . | . . . Combat Hostiles . | . . . Parts Melted . | . . . Heat Transferred 275 | 75 200 . Parts Sabotaged . | . . . Parts Stolen . | . . . Parts Stripped . | . . . Power Chain Reactions . | . . . Alert | -11 -10 -10 ------- Run | Yrd Mat Min Maximum Alert Level . | . . . Low Security (%) 100 | 100 100 100 Level 1 . | . . . Level 2 . | . . . Level 3 . | . . . Level 4 . | . . . Level 5 . | . . . High Security . | . . . Max Security . | . . . Peak Influence 70 | 15 70 . Initial . | . . . Average 15 | 2 17 . Influence Increases 301 | 15 286 . Destroy 0b10 Robot/C 160 | . 160 . Destroy 0b10 Robot/NC 50 | 15 35 . Destroy Leader 48 | . 48 . Successful Hack 19 | . 19 . Destroy Structure 9 | . 9 . Partial Spotted 15 | . 15 . Influence Decreases 301 | 15 286 . Time Decay 301 | 15 286 . Squads Dispatched 1 | . 1 . Investigation 1 | . 1 . Extermination . | . . . Reinforcement . | . . . Assault . | . . . Garrison . | . . . Intercept . | . . . Searches Triggered . | . . . Construction Impeded . | . . . Haulers Reinforced . | . . . Active Scanning Responses . | . . . Cargo Convoy Interrupts . | . . . Stealth | -11 -10 -10 --------- Run | Yrd Mat Min Distress Signals . | . . . Communications Jammed . | . . . Distress Signals . | . . . Times Spotted 17 | . 15 2 Peak Tracking Total 3 | . 3 2 Tactical Retreats . | . . . Traps | -11 -10 -10 ------- Run | Yrd Mat Min Traps Triggered 2 | . 2 . Indirectly . | . . . Trap Hack Attempts . | . . . Triggered . | . . . Disarmed . | . . . Reprogrammed . | . . . Reused . | . . . Traps Extracted . | . . . Installed . | . . . Triggered . | . . . Machines | -11 -10 -10 ---------- Run | Yrd Mat Min Machines Disabled . | . . . Max in Single Turn . | . . . Machines Repaired . | . . . Machines Dismantled . | . . . Machines Sabotaged . | . . . Overloaded Fab Kills . | . . . Hacking | -11 -10 -10 --------- Run | Yrd Mat Min Machines Accessed 8 | . 8 . Terminals 7 | . 7 . Fabricators . | . . . Repair Stations . | . . . Recycling Units 1 | . 1 . Scanalyzers . | . . . Garrison Access . | . . . Total Hacks 22 | . 22 . Successful 14 | . 14 . Failed 8 | . 8 . Catastrophic . | . . . Database Lockouts . | . . . Manual 19 | . 19 . Terminals 20 | . 20 . Fabricators . | . . . Repair Stations . | . . . Recycling Units 2 | . 2 . Scanalyzers . | . . . Garrison Access . | . . . Terminal Hacks 5 | . 5 . Robot Analysis 1 | . 1 . Prototype ID Bank 2 | . 2 . Zone Layout 2 | . 2 . Fabricator Hacks . | . . . Repair Station Hacks . | . . . Recycling Unit Hacks . | . . . Scanalyzer . | . . . Garrison Access Hacks . | . . . Unauthorized Hacks 9 | . 9 . Terminals 8 | . 8 . Botnet 2 | . 2 . Operators 1 | . 1 . Skim 5 | . 5 . Fabricators . | . . . Repair Stations . | . . . Recycling Units 1 | . 1 . Recyclers 1 | . 1 . Scanalyzers . | . . . Garrison Access . | . . . Data Cores Recovered . | . . . Used . | . . . Hacking Detections 8 | . 8 . Full Trace Events . | . . . Feedback Events . | . . . Feedback Blocked . | . . . Robot Schematics Acquired . | . . . Robots Built . | . . . Authchips . | . . . Time . | . . . Total Robot Build Rating . | . . . Part Schematics Acquired . | . . . Parts Built . | . . . Authchips . | . . . Time . | . . . Total Part Build Rating . | . . . Parts Repaired . | . . . Time . | . . . Parts Recycled . | . . . Recycled Matter . | . . . Retrieved Matter . | . . . Retrieved Components . | . . . Parts Scanalyzed . | . . . Part Schematics Acquired . | . . . Parts Damaged . | . . . Bothacking | -11 -10 -10 ------------ Run | Yrd Mat Min Used RIF Installer . | . . . Robots Hacked . | . . . Non-combat . | . . . Combat . | . . . Robot Hacks Applied . | . . . Relay Couplers Released . | . . . Fabnet Peak Effective % . | . . . Robots Rewired . | . . . Allies Hacked . | . . . Hacks Repelled . | . . . Allies | -11 -10 -10 -------- Run | Yrd Mat Min Total Allies . | . . . Largest Group . | . . . Highest-Rated Group . | . . . Highest-Rated Ally . | . . . Total Orders . | . . . Ally Attacks . | . . . Total Damage . | . . . Kills . | . . . Allies Corrupted . | . . . Allies Melted . | . . . Intel | -11 -10 -10 ------- Run | Yrd Mat Min Active Infowar (turns) 1060 | 22 998 40 Seismic 1060 | 22 998 40 Robot Analysis Total 1 | . 1 . Derelict Logs Recovered . | . . . Drone Launches . | . . . Drone Recoveries . | . . . Exploration | -11 -10 -10 ------------- Run | Yrd Mat Min Turns Passed 1145 | 107 998 40 Spaces Moved 540 | 49 481 10 Core 5 | 5 . . Treads 535 | 44 481 10 Legs . | . . . Wheels . | . . . Hover . | . . . Flight . | . . . Fastest Speed 50 | 50 160 160 Average Speed 158 | 148 160 160 Slowest Speed 160 | 160 160 160 Overloaded Moves . | . . . Propulsion Burnouts . | . . . Robots Hopped . | . . . Potential Cave-ins . | . . . Cave-ins Triggered . | . . . Exploration Rate (%) 33 | 4 87 10 Regions Visited 2 Branch Regions 1 Pre-discovered Areas 1 | . 1 . Known Exits Taken . | . . . Unknown Exits Taken 2 | 1 1 . Scrap Searched . | . . . Spaces Dug 7 | . 7 . Terrain Destroyed 7 | . 7 . Melee . | . . . Projectile 7 | . 7 . AOE . | . . . Terrain Rammed . | . . . Walls Destroyed . | . . . Machines Disabled . | . . . Actions | -11 -10 -10 --------- Run | Yrd Mat Min Total 691 | 69 601 21 Wait 37 | 2 35 . Move 539 | 49 480 10 Hop . | . . . Pick Up 20 | 5 15 . Fast Attach 7 | 7 . . Attach 2 | . . 2 Detach . | . . . Swap 10 | . 8 2 Drop 9 | . 9 . Fire 64 | 5 52 7 Melee . | . . . Ram . | . . . Kick . | . . . Crush 3 | 1 2 . Escape Stasis . | . . . Rewire . | . . . Trap . | . . . Miscellaneous . | . . . Route ------- -11/Scrapyard -10/Materials (discovered 5 exits: *Mat x3 / [*Min] / Sub) -10/Mines (discovered 2 exits: Mat x2) History --------- Turn | Location | Event 10 | -11/Scrapyard | Discovered new exit (range 13) 108 | -11/Scrapyard | Entered Materials 302 | -10/Materials | Discovered new exit (range 16) 304 | -10/Materials | Build established: Mutant 717 | -10/Materials | Discovered new exit (range 11) 897 | -10/Materials | Learned Storage stockpile data 949 | -10/Materials | Learned Storage stockpile data 989 | -10/Materials | Learned Storage emergency access door positions 1017 | -10/Materials | Identified exit to Materials 1017 | -10/Materials | Identified exit to Subcaves 1033 | -10/Materials | Discovered new exit (range 15) 1037 | -10/Materials | Loaded intel: 9 trap records 1076 | -10/Materials | Loaded intel: 2 recycling unit locations 1106 | -10/Materials | Entered Mines 1107 | -10/Mines | Assembled infested the area 1112 | -10/Mines | Assisted by a Guerilla fighting off Assembled 1131 | -10/Mines | Met a Derelict bent on vengeance 1136 | -10/Mines | Core integrity fell below 50% 1145 | -10/Mines | Core integrity fell below 20% 1146 | -10/Mines | Destroyed by D-53 Grenadier with Mini Grenade Launcher Last Messages --------------- 01134_ K-01 Serf collects debris. 01137_ Imp. Ion Engine destroyed. 01137_ Lgt. Treads destroyed. 01138_ K-01 Serf collects debris. 01139_ Lgt. Treads destroyed. 01139_ U-05 Engineer lays Concrete. 01139_ D-53 Grenadier knocked back. 01140_ The unstable cave ceiling collapses. 01140_ U-05 Engineer lays Concrete. 01141_ Lgt. Cannon destroyed. 01141_ U-05 Engineer lays Concrete. 01142_ The unstable cave ceiling collapses. 01142_ Bore Cannon crushed. 01142_ K-01 Serf collects debris. 01143_ U-05 Engineer lays Concrete. 01143_ K-01 Serf collects debris. 01144_ U-05 Engineer lays Concrete. 01145_ The unstable cave ceiling collapses. 01145_ U-05 Engineer lays Concrete. 01145_ Assault Rifle destroyed. Map ----- +----------------------------------------------------+ | ???????????????????????????????????????? | | ???????????????????????????????????????? | | ???????????????????????????????????????? | | ???????????????????????????????????????? | | ???????????????????????????????????????? | | ???????????????